fUSD/lending_fUSD_20240502
["ID","MTS","AMOUNT","RATE_DAILY","PERIOD"]
[325287264,1714683041020,-500.0,0.00030136,2]
[325287265,1714683041030,-500.0,0.00030136,2]
[325287266,1714683041040,-161.64220559,0.00030136,2]
[325287267,1714683041050,-500.0,0.00030136,2]
[325287268,1714683041059,-500.0,0.00030136,2]
[325287269,1714683041068,-500.0,0.00030136,2]
[325287270,1714683041078,-500.0,0.00030136,2]
[325287271,1714683041087,-1062.26,0.00030136,2]
[325287272,1714683041096,-500.0,0.00030136,2]
[325287273,1714683041105,-500.0,0.00030136,2]
[325287274,1714683041114,-500.0,0.00030136,2]
[325287275,1714683041123,-500.0,0.00030136,2]
[325287276,1714683041132,-1032.63,0.00030136,2]
[325287277,1714683041141,-500.0,0.00030136,2]
[325287278,1714683041150,-500.0,0.00030136,2]
[325287279,1714683041160,-481.83780182,0.00030136,2]
[325287280,1714683041169,-500.0,0.00030136,2]
[325287281,1714683041178,-500.0,0.00030136,2]
[325287282,1714683041187,-500.0,0.00030136,2]
[325287283,1714683041196,-500.0,0.00030136,2]
[325287284,1714683041206,-221.23381275,0.00030136,2]
[325287285,1714683041215,-500.0,0.00030136,2]
[325287286,1714683041224,-500.0,0.00030136,2]
[325287287,1714683041233,-500.0,0.00030136,2]
[325287288,1714683041242,-689.75,0.00030136,2]
[325287289,1714683041251,-500.0,0.00030136,2]
[325287290,1714683041261,-500.0,0.00030136,2]
[325287291,1714683041270,-606.2,0.00030136,2]
[325287292,1714683041279,-500.0,0.00030136,2]
[325287293,1714683041289,-500.0,0.00030136,2]
[325287294,1714683041298,-500.0,0.00030136,2]
[325287295,1714683041308,-500.0,0.00030136,2]
[325287296,1714683041318,-500.0,0.00030136,2]
[325287297,1714683041327,-500.0,0.00030136,2]
[325287298,1714683041337,-500.0,0.00030136,2]
[325287299,1714683041346,-1362.14,0.00030136,2]
[325287300,1714683041356,-500.0,0.00030136,2]
[325287301,1714683041365,-511.4,0.00030136,2]
[325287302,1714683041375,-500.0,0.00030136,2]
[325287303,1714683041384,-500.0,0.00030136,2]
[325287304,1714683041393,-513.66,0.00030136,2]
[325287305,1714683041403,-500.0,0.00030136,2]
[325287306,1714683041413,-1065.05,0.00030136,2]
[325287307,1714683041423,-500.0,0.00030136,2]
[325287308,1714683041432,-805.1,0.00030136,2]
[325287309,1714683041442,-500.0,0.00030136,2]
[325287310,1714683041451,-1024.97,0.00030136,2]
[325287311,1714683041461,-507.61,0.00030136,2]
[325287312,1714683041471,-500.0,0.00030136,2]
[325287313,1714683041481,-500.0,0.00030136,2]
[325287314,1714683041492,-500.0,0.00030136,2]
[325287315,1714683041503,-500.0,0.00030136,2]
[325287316,1714683041512,-721.28,0.00030136,2]
[325287317,1714683041522,-857.67,0.00030136,2]
[325287318,1714683041534,-229.8403885,0.00030136,2]
[325287319,1714683041544,-505.77,0.00030136,2]
[325287320,1714683041556,-500.0,0.00030136,2]
[325287321,1714683041567,-639.08,0.00030136,2]
[325287322,1714683041576,-794.49,0.00030136,2]
[325287323,1714683041586,-500.0,0.00030136,2]
[325287324,1714683041596,-500.0,0.00030136,2]
[325287325,1714683041608,-500.0,0.00030136,2]
[325287326,1714683041619,-500.0,0.00030136,2]
[325287327,1714683041629,-530.43,0.00030136,2]
[325287328,1714683041639,-500.0,0.00030136,2]
[325287329,1714683041649,-500.0,0.00030136,2]
[325287330,1714683041659,-500.0,0.00030136,2]
[325287331,1714683041670,-500.0,0.00030136,2]
[325287332,1714683041679,-500.0,0.00030136,2]
[325287333,1714683041689,-500.0,0.00030136,2]
[325287334,1714683041700,-437.37270955,0.00030136,2]
[325287335,1714683041711,-500.0,0.00030136,2]
[325287336,1714683041721,-500.0,0.00030136,2]
[325287337,1714683041731,-500.0,0.00030136,2]
[325287338,1714683041742,-500.0,0.00030136,2]
[325287339,1714683041752,-500.0,0.00030136,2]
[325287340,1714683041768,-779.7,0.00030136,2]
[325287341,1714683041777,-501.52499753,0.00030136,2]
[325287342,1714683041787,-500.0,0.00030136,2]
[325287343,1714683041796,-500.0,0.00030136,2]
[325287344,1714683041807,-500.0,0.00030136,2]
[325287345,1714683041816,-500.0,0.00030136,2]
[325287346,1714683041826,-500.0,0.00030136,2]
[325287347,1714683041835,-500.0,0.00030136,2]
[325287348,1714683041845,-500.0,0.00030136,2]
[325287349,1714683041855,-500.0,0.00030136,2]
[325287350,1714683041864,-500.0,0.00030136,2]
[325287351,1714683041874,-1684.62,0.00030136,2]
[325287352,1714683041883,-597.3,0.00030136,2]
[325287353,1714683041893,-500.0,0.00030136,2]
[325287354,1714683041902,-500.0,0.00030136,2]
[325287355,1714683041912,-812.7,0.00030136,2]
[325287356,1714683041921,-1254.46,0.00030136,2]
[325287357,1714683041931,-500.0,0.00030136,2]
[325287358,1714683041941,-500.0,0.00030136,2]
[325287359,1714683041951,-500.0,0.00030136,2]
[325287360,1714683041960,-500.0,0.00030136,2]
[325287361,1714683041970,-500.0,0.00030136,2]
[325287362,1714683041979,-500.0,0.00030136,2]
[325287363,1714683041989,-500.0,0.00030136,2]
[325287364,1714683041999,-416.56593749,0.00030136,2]
[325287365,1714683042008,-500.0,0.00030136,2]
[325287366,1714683042018,-776.62,0.00030136,2]
[325287367,1714683042027,-618.85,0.00030136,2]
[325287368,1714683042037,-500.0,0.00030136,2]
[325287369,1714683042047,-500.0,0.00030136,2]
[325287370,1714683042056,-500.0,0.00030136,2]
[325287371,1714683042067,-500.0,0.00030136,2]
[325287372,1714683042076,-500.0,0.00030136,2]
[325287373,1714683042086,-500.0,0.00030136,2]
[325287374,1714683042095,-500.0,0.00030136,2]
[325287375,1714683042105,-500.0,0.00030136,2]
[325287376,1714683042115,-500.0,0.00030136,2]
[325287377,1714683042124,-759.0,0.00030136,2]
[325287378,1714683042134,-500.0,0.00030136,2]
[325287379,1714683042144,-500.0,0.00030136,2]
[325287380,1714683042155,-500.0,0.00030136,2]
[325287381,1714683042164,-664.35,0.00030136,2]
[325287382,1714683042174,-850.72,0.00030136,2]
[325287383,1714683042183,-500.0,0.00030136,2]
[325287384,1714683042193,-500.0,0.00030136,2]
[325287385,1714683042202,-500.0,0.00030136,2]
[325287386,1714683042212,-500.0,0.00030136,2]
[325287387,1714683042222,-919.88,0.00030136,2]
[325287388,1714683042231,-500.0,0.00030136,2]
[325287389,1714683042241,-500.0,0.00030136,2]
[325287390,1714683042251,-1201.68,0.00030136,2]
[325287391,1714683042260,-617.56,0.00030136,2]
[325287392,1714683042270,-212.93251643,0.00030136,2]
[325287393,1714683042280,-500.0,0.00030136,2]
[325287394,1714683042289,-1293.48,0.00030136,2]
[325287395,1714683042299,-500.0,0.00030136,2]
[325287396,1714683042308,-500.0,0.00030136,2]
[325287397,1714683042318,-500.0,0.00030136,2]
[325287398,1714683042328,-803.61,0.00030136,2]
[325287399,1714683042337,-506.51995861,0.00030136,2]
[325287400,1714683042347,-500.0,0.00030136,2]
[325287401,1714683042356,-1205.02,0.00030136,2]
[325287402,1714683042366,-500.0,0.00030136,2]
[325287403,1714683042376,-500.0,0.00030136,2]
[325287404,1714683042386,-1305.3,0.00030136,2]
[325287405,1714683042396,-1236.99,0.00030136,2]
[325287406,1714683042406,-500.0,0.00030136,2]
[325287407,1714683042417,-500.0,0.00030136,2]
[325287408,1714683042426,-500.0,0.00030136,2]
[325287409,1714683042437,-500.0,0.00030136,2]
[325287410,1714683042447,-1759.58,0.00030136,2]
[325287411,1714683042458,-757.34,0.00030136,2]
[325287412,1714683042468,-500.0,0.00030136,2]
[325287413,1714683042478,-1577.96,0.00030136,2]
[325287414,1714683042488,-500.0,0.00030136,2]
[325287415,1714683042498,-504.56586496,0.00030136,2]
[325287416,1714683042508,-500.0,0.00030136,2]
[325287417,1714683042518,-500.0,0.00030136,2]
[325287418,1714683042528,-500.0,0.00030136,2]
[325287419,1714683042537,-314.27183488,0.00030136,2]
[325287420,1714683042547,-500.0,0.00030136,2]
[325287421,1714683042557,-500.0,0.00030136,2]
[325287422,1714683042568,-1496.03,0.00030136,2]
[325287423,1714683042578,-500.0,0.00030136,2]
[325287424,1714683042587,-513.76,0.00030136,2]
[325287425,1714683042597,-500.0,0.00030136,2]
[325287426,1714683042607,-759.28,0.00030136,2]
[325287427,1714683042616,-500.0,0.00030136,2]
[325287428,1714683042626,-1336.71,0.00030136,2]
[325287429,1714683042636,-939.25,0.00030136,2]
[325287430,1714683042646,-1011.99,0.00030136,2]
[325287431,1714683042656,-500.0,0.00030136,2]
[325287432,1714683042666,-500.0,0.00030136,2]
[325287433,1714683042675,-500.0,0.00030136,2]
[325287434,1714683042685,-693.14,0.00030136,2]
[325287435,1714683042695,-500.0,0.00030136,2]
[325287436,1714683042704,-2154.43,0.00030136,2]
[325287437,1714683042715,-1515.25,0.00030136,2]
[325287438,1714683042724,-591.58,0.00030136,2]
[325287439,1714683042734,-511.70499091,0.00030136,2]
[325287440,1714683042745,-500.0,0.00030136,2]
[325287441,1714683042756,-608.52,0.00030136,2]
[325287442,1714683042768,-1751.28,0.00030136,2]
[325287444,1714683042777,-500.0,0.00030136,2]
[325287446,1714683042787,-500.0,0.00030136,2]
[325287449,1714683042798,-538.77,0.00030136,2]
[325287450,1714683042808,-500.0,0.00030136,2]
[325287451,1714683042818,-1423.33,0.00030136,2]
[325287452,1714683042828,-739.84,0.00030136,2]
[325287453,1714683042837,-500.0,0.00030136,2]
[325287454,1714683042849,-500.0,0.00030136,2]
[325287455,1714683042859,-500.0,0.00030136,2]
[325287456,1714683042868,-500.0,0.00030136,2]
[325287457,1714683042878,-500.0,0.00030136,2]
[325287459,1714683042887,-500.0,0.00030136,2]
[325287460,1714683042896,-617.25,0.00030136,2]
[325287462,1714683042906,-500.0,0.00030136,2]
[325287464,1714683042916,-500.0,0.00030136,2]
[325287466,1714683042925,-1516.88,0.00030136,2]
[325287467,1714683042935,-1097.93,0.00030136,2]
[325287468,1714683042945,-500.0,0.00030136,2]
[325287469,1714683042954,-500.0,0.00030136,2]
[325287472,1714683042964,-1417.59,0.00030136,2]
[325287475,1714683042975,-500.0,0.00030136,2]
[325287477,1714683042984,-894.75,0.00030136,2]
[325287479,1714683042994,-500.0,0.00030136,2]
[325287481,1714683043004,-500.0,0.00030136,2]
[325287483,1714683043014,-500.0,0.00030136,2]
[325287484,1714683043023,-992.45,0.00030136,2]
[325287485,1714683043033,-500.0,0.00030136,2]
[325287487,1714683043042,-500.0,0.00030136,2]
[325287489,1714683043052,-1423.1,0.00030136,2]
[325287491,1714683043062,-500.0,0.00030136,120]
[325287493,1714683043072,-500.0,0.00030136,2]
[325287495,1714683043082,-553.58,0.00030136,2]
[325287497,1714683043091,-500.0,0.00030136,2]
[325287499,1714683043101,-500.0,0.00030136,2]
[325287501,1714683043111,-500.0,0.00030136,2]
[325287503,1714683043121,-1667.84,0.00030136,2]
[325287505,1714683043131,-500.0,0.00030136,2]
[325287507,1714683043141,-165.35077419,0.00030136,2]
[325287509,1714683043151,-751.3,0.00030136,2]
[325287511,1714683043162,-500.0,0.00030136,2]
[325287513,1714683043172,-671.43,0.00030136,2]
[325287515,1714683043182,-500.0,0.00030136,2]
[325287517,1714683043192,-500.0,0.00030136,2]
[325287518,1714683043203,-500.0,0.00030136,2]
[325287519,1714683043215,-1932.81,0.00030136,2]
[325287520,1714683043225,-500.0,0.00030136,2]
[325287521,1714683043237,-500.0,0.00030136,2]
[325287522,1714683043249,-500.0,0.00030136,2]
[325287523,1714683043259,-720.23,0.00030136,2]
[325287524,1714683043269,-500.0,0.00030136,2]
[325287525,1714683043279,-500.0,0.00030136,2]
[325287526,1714683043289,-500.0,0.00030136,2]
[325287527,1714683043299,-500.0,0.00030136,2]
[325287528,1714683043310,-2458.79,0.00030136,2]
[325287529,1714683043320,-500.0,0.00030136,2]
[325287530,1714683043332,-1403.51,0.00030136,2]
[325287531,1714683043344,-500.0,0.00030136,2]
[325287532,1714683043354,-939.24,0.00030136,2]
[325287533,1714683043364,-500.0,0.00030136,2]
[325287534,1714683043374,-500.0,0.00030136,2]
[325287535,1714683043383,-500.0,0.00030136,2]
[325287536,1714683043393,-500.0,0.00030136,2]
[325287537,1714683043403,-500.0,0.00030136,2]
[325287538,1714683043413,-790.63,0.00030136,2]
[325287539,1714683043423,-512.50627139,0.00030136,2]
[325287540,1714683043432,-2136.05,0.00030136,2]
[325287541,1714683043442,-500.0,0.00030136,2]
[325287542,1714683043452,-500.0,0.00030136,2]
[325287543,1714683043462,-500.0,0.00030136,2]
[325287544,1714683043472,-659.54,0.00030136,2]
[325287545,1714683043482,-500.0,0.00030136,2]
[325287546,1714683043492,-572.87,0.00030136,2]
[325287547,1714683043502,-500.0,0.00030136,2]
[325287548,1714683043513,-500.0,0.00030136,2]
[325287549,1714683043524,-523.04,0.00030136,2]
[325287550,1714683043535,-500.0,0.00030136,2]
[325287552,1714683043544,-500.0,0.00030136,2]
[325287553,1714683043554,-1065.61,0.00030136,2]
[325287554,1714683043563,-1105.16,0.00030136,2]
[325287555,1714683043574,-1968.78,0.00030136,2]
[325287556,1714683043584,-500.0,0.00030136,2]
[325287557,1714683043593,-501.8006664,0.00030136,2]
[325287558,1714683043604,-963.06,0.00030136,2]
[325287559,1714683043613,-500.0,0.00030136,2]
[325287560,1714683043624,-1145.93,0.00030136,2]
[325287561,1714683043634,-2488.99,0.00030136,2]
[325287562,1714683043644,-548.51,0.00030136,2]
[325287564,1714683043654,-500.0,0.00030136,2]
[325287566,1714683043663,-826.51,0.00030136,2]
[325287567,1714683043673,-1217.75,0.00030136,2]
[325287568,1714683043683,-1244.53,0.00030136,2]
[325287569,1714683043694,-500.0,0.00030136,2]
[325287570,1714683043704,-500.0,0.00030136,2]
[325287572,1714683043714,-500.0,0.00030136,2]
[325287574,1714683043723,-1000.0,0.00030136,2]
[325287577,1714683043734,-500.0,0.00030136,2]
[325287579,1714683043744,-500.0,0.00030136,2]
[325287581,1714683043755,-1988.05,0.00030136,2]
[325287583,1714683043769,-500.0,0.00030136,2]
[325287585,1714683043779,-663.12,0.00030136,2]
[325287587,1714683043790,-500.0,0.00030136,2]
[325287589,1714683043800,-1574.61,0.00030136,2]
[325287591,1714683043811,-892.09,0.00030136,2]
[325287593,1714683043822,-1574.87,0.00030136,2]
[325287595,1714683043832,-500.0,0.00030136,2]
[325287597,1714683043842,-1023.63,0.00030136,2]
[325287627,1714683044096,-682.83,0.00030136,2]
[325287628,1714683044154,-500.0,0.00030136,2]
[325287629,1714683044164,-500.0,0.00030136,2]
[325287630,1714683044173,-1820.63,0.00030136,2]
[325287631,1714683044182,-915.04,0.00030136,2]
[325287632,1714683044192,-1076.68,0.00030136,2]
[325287633,1714683044201,-507.59,0.00030136,2]
[325287634,1714683044212,-500.0,0.00030136,2]
[325287635,1714683044222,-522.52,0.00030136,2]
[325287636,1714683044231,-913.95,0.00030136,2]
[325287637,1714683044240,-1386.78,0.00030136,2]
[325287638,1714683044250,-500.0,0.00030136,2]
[325287639,1714683044259,-724.65,0.00030136,2]
[325287640,1714683044268,-1074.82,0.00030136,2]
[325287641,1714683044278,-500.0,0.00030136,2]
[325287642,1714683044287,-1472.87,0.00030136,2]
[325287643,1714683044296,-865.35,0.00030136,2]
[325287644,1714683044305,-500.0,0.00030136,2]
[325287645,1714683044315,-500.0,0.00030136,2]
[325287646,1714683044324,-500.0,0.00030136,2]
[325287647,1714683044335,-500.0,0.00030136,2]
[325287648,1714683044345,-500.0,0.00030136,2]
[325287649,1714683044354,-1087.85,0.00030136,2]
[325287650,1714683044364,-500.0,0.00030136,2]
[325287651,1714683044373,-500.0,0.00030136,2]
[325287652,1714683044383,-1158.94,0.00030136,2]
[325287653,1714683044392,-500.0,0.00030136,2]
[325287654,1714683044401,-500.0,0.00030136,2]
[325287655,1714683044412,-500.0,0.00030136,2]
[325287656,1714683044421,-500.0,0.00030136,2]
[325287657,1714683044431,-500.0,0.00030136,2]
[325287658,1714683044441,-500.0,0.00030136,2]
[325287659,1714683044452,-847.98,0.00030136,2]
[325287660,1714683044462,-500.0,0.00030136,2]
[325287661,1714683044474,-500.0,0.00030136,2]
[325287662,1714683044483,-500.0,0.00030136,2]
[325287663,1714683044494,-572.82,0.00030136,2]
[325287664,1714683044503,-500.0,0.00030136,2]
[325287665,1714683044514,-980.23,0.00030136,2]
[325287666,1714683044524,-1033.41,0.00030136,2]
[325287667,1714683044535,-1238.67,0.00030136,2]
[325287668,1714683044546,-2153.08,0.00030136,2]
[325287669,1714683044555,-491.24694429,0.00030136,2]
[325287670,1714683044565,-502.42259762,0.00030136,2]
[325287671,1714683044575,-1054.6,0.00030136,2]
[325287672,1714683044584,-500.0,0.00030136,2]
[325287673,1714683044593,-500.0,0.00030136,2]
[325287674,1714683044604,-584.4,0.00030136,2]
[325287675,1714683044614,-601.12,0.00030136,2]
[325287676,1714683044624,-500.0,0.00030136,2]
[325287677,1714683044636,-1449.02,0.00030136,2]
[325287678,1714683044645,-500.0,0.00030136,2]
[325287679,1714683044655,-500.0,0.00030136,2]
[325287680,1714683044664,-500.0,0.00030136,2]
[325287681,1714683044674,-500.0,0.00030136,2]
[325287682,1714683044685,-500.0,0.00030136,2]
[325287683,1714683044696,-2076.18,0.00030136,2]
[325287684,1714683044707,-896.36,0.00030136,2]
[325287685,1714683044717,-1562.95,0.00030136,2]
[325287686,1714683044728,-500.0,0.00030136,2]
[325287687,1714683044738,-500.0,0.00030136,2]
[325287688,1714683044750,-500.0,0.00030136,2]
[325287689,1714683044760,-500.0,0.00030136,2]
[325287690,1714683044773,-500.0,0.00030136,2]
[325287691,1714683044783,-500.0,0.00030136,2]
[325287692,1714683044792,-500.0,0.00030136,2]
[325287693,1714683044801,-615.89,0.00030136,2]
[325287694,1714683044811,-500.0,0.00030136,2]
[325287695,1714683044821,-500.0,0.00030136,2]
[325287696,1714683044830,-500.0,0.00030136,2]
[325287697,1714683044840,-842.85,0.00030136,2]
[325287698,1714683044852,-602.38719331,0.00030136,2]
[325287699,1714683044862,-500.0,0.00030136,2]
[325287700,1714683044871,-718.55,0.00030136,2]
[325287701,1714683044881,-1843.7,0.00030136,2]
[325287702,1714683044890,-988.8,0.00030136,2]
[325287703,1714683044899,-1233.01,0.00030136,2]
[325287704,1714683044908,-1043.58,0.00030136,2]
[325287705,1714683044919,-500.0,0.00030136,2]
[325287706,1714683044928,-500.0,0.00030136,2]
[325287707,1714683044937,-500.0,0.00030136,2]
[325287708,1714683044946,-500.0,0.00030136,2]
[325287709,1714683044955,-502.34616401,0.00030136,2]
[325287710,1714683044965,-779.0,0.00030136,2]
[325287711,1714683044975,-2426.46,0.00030136,2]
[325287712,1714683044984,-500.0,0.00030136,2]
[325287713,1714683044993,-1227.36,0.00030136,2]
[325287714,1714683045003,-1366.27,0.00030136,2]
[325287715,1714683045012,-500.0,0.00030136,2]
[325287716,1714683045021,-500.0,0.00030136,2]
[325287717,1714683045030,-500.0,0.00030136,2]
[325287718,1714683045039,-593.4950215,0.00030136,2]
[325287719,1714683045048,-1062.59,0.00030136,2]
[325287720,1714683045058,-500.0,0.00030136,2]
[325287721,1714683045068,-1119.74,0.00030136,2]
[325287722,1714683045078,-378.65708808,0.00030136,2]
[325287723,1714683045087,-500.0,0.00030136,2]
[325287724,1714683045096,-1126.52,0.00030136,2]
[325287725,1714683045106,-500.0,0.00030136,2]
[325287726,1714683045116,-1321.65,0.00030136,2]
[325287727,1714683045125,-500.0,0.00030136,2]
[325287728,1714683045134,-500.0,0.00030136,2]
[325287729,1714683045143,-968.08,0.00030136,2]
[325287730,1714683045153,-500.0,0.00030136,2]
[325287731,1714683045163,-500.0,0.00030136,2]
[325287732,1714683045172,-500.0,0.00030136,2]
[325287733,1714683045181,-500.0,0.00030136,2]
[325287734,1714683045190,-500.0,0.00030136,2]
[325287735,1714683045199,-1421.65,0.00030136,2]
[325287736,1714683045209,-500.0,0.00030136,2]
[325287737,1714683045218,-1669.57,0.00030136,2]
[325287738,1714683045227,-500.0,0.00030136,2]
[325287739,1714683045237,-500.0,0.00030136,2]
[325287740,1714683045246,-497.82488467,0.00030136,2]
[325287741,1714683045255,-500.0,0.00030136,2]
[325287742,1714683045265,-611.12,0.00030136,2]
[325287743,1714683045274,-500.0,0.00030136,2]
[325287744,1714683045283,-1045.51,0.00030136,2]
[325287745,1714683045292,-500.0,0.00030136,2]
[325287746,1714683045302,-500.0,0.00030136,2]
[325287747,1714683045311,-501.78587274,0.00030136,2]
[325287748,1714683045322,-887.23,0.00030136,2]
[325287749,1714683045331,-500.0,0.00030136,2]
[325287750,1714683045340,-500.0,0.00030136,2]
[325287751,1714683045350,-757.57,0.00030136,2]
[325287752,1714683045360,-500.0,0.00030136,2]
[325287753,1714683045369,-1235.25,0.00030136,2]
[325287754,1714683045378,-500.0,0.00030136,2]
[325287755,1714683045388,-500.0,0.00030136,2]
[325287756,1714683045397,-500.0,0.00030136,2]
[325287757,1714683045406,-500.0,0.00030136,2]
[325287758,1714683045415,-1648.49,0.00030136,2]
[325287759,1714683045424,-1549.2,0.00030136,2]
[325287760,1714683045433,-814.98,0.00030136,2]
[325287761,1714683045442,-1109.78,0.00030136,2]
[325287762,1714683045451,-1009.56,0.00030136,2]
[325287763,1714683045460,-500.0,0.00030136,2]
[325287764,1714683045469,-1083.32,0.00030136,2]
[325287765,1714683045478,-1978.86,0.00030136,2]
[325287766,1714683045487,-500.0,0.00030136,2]
[325287767,1714683045496,-500.0,0.00030136,2]
[325287768,1714683045505,-1371.5,0.00030136,2]
[325287769,1714683045515,-500.0,0.00030136,2]
[325287770,1714683045524,-2170.38,0.00030136,2]
[325287771,1714683045533,-506.25997547,0.00030136,2]
[325287772,1714683045542,-580.8848286,0.00030136,2]
[325287773,1714683045551,-500.0,0.00030136,2]
[325287774,1714683045560,-500.0,0.00030136,2]
[325287775,1714683045571,-500.0,0.00030136,2]
[325287776,1714683045580,-500.0,0.00030136,2]
[325287777,1714683045589,-500.0,0.00030136,2]
[325287778,1714683045598,-695.46,0.00030136,2]
[325287779,1714683045608,-500.0,0.00030136,2]
[325287780,1714683045617,-928.08,0.00030136,2]
[325287781,1714683045626,-635.18,0.00030136,2]
[325287782,1714683045635,-500.0,0.00030136,2]
[325287783,1714683045644,-727.5,0.00030136,2]
[325287784,1714683045653,-500.0,0.00030136,2]
[325287785,1714683045663,-576.6,0.00030136,2]
[325287786,1714683045672,-500.0,0.00030136,2]
[325287787,1714683045681,-1089.91,0.00030136,2]
[325287788,1714683045692,-500.0,0.00030136,2]
[325287789,1714683045701,-1145.73,0.00030136,2]
[325287790,1714683045711,-646.04,0.00030136,2]
[325287791,1714683045720,-500.0,0.00030136,2]
[325287792,1714683045730,-2355.52,0.00030136,2]
[325287793,1714683045740,-506.54,0.00030136,2]
[325287794,1714683045749,-1685.91,0.00030136,2]
[325287795,1714683045763,-523.68,0.00030136,2]
[325287796,1714683045772,-500.0,0.00030136,2]
[325287797,1714683045781,-944.69,0.00030136,2]
[325287798,1714683045790,-500.0,0.00030136,2]
[325287799,1714683045800,-575.67,0.00030136,2]
[325287800,1714683045809,-500.0,0.00030136,2]
[325287801,1714683045819,-2408.71,0.00030136,2]
[325287802,1714683045828,-1773.56,0.00030136,2]
[325287803,1714683045838,-796.25,0.00030136,2]
[325287805,1714683045849,-860.54,0.00030136,2]
[325287807,1714683045859,-878.37,0.00030136,2]
[325287810,1714683045868,-500.0,0.00030136,2]
[325287812,1714683045877,-500.0,0.00030136,2]
[325287814,1714683045886,-500.0,0.00030136,2]
[325287817,1714683045895,-500.0,0.00030136,2]
[325287820,1714683045904,-239.1307941,0.00030136,2]
[325287822,1714683045914,-770.23,0.00030136,2]
[325287824,1714683045923,-500.0,0.00030136,2]
[325287826,1714683045932,-828.87,0.00030136,2]
[325287828,1714683045943,-1610.86,0.00030136,2]
[325287830,1714683045952,-565.44,0.00030136,2]
[325287832,1714683045961,-500.0,0.00030136,2]
[325287834,1714683045970,-500.0,0.00030136,2]
[325287836,1714683045980,-585.07,0.00030136,2]
[325287838,1714683045990,-500.0,0.00030136,2]
[325287840,1714683045999,-500.0,0.00030136,2]
[325287842,1714683046008,-1250.61,0.00030136,2]
[325287844,1714683046017,-762.12,0.00030136,2]
[325287845,1714683046027,-687.63,0.00030136,2]
[325287846,1714683046036,-625.06,0.00030136,2]
[325287847,1714683046046,-960.08,0.00030136,2]
[325287849,1714683046055,-500.0,0.00030136,2]
[325287851,1714683046064,-683.05,0.00030136,2]
[325287853,1714683046074,-500.0,0.00030136,2]
[325287855,1714683046083,-791.88,0.00030136,2]
[325287857,1714683046092,-952.61,0.00030136,2]
[325287858,1714683046101,-500.0,0.00030136,2]
[325287860,1714683046110,-500.0,0.00030136,2]
[325287861,1714683046119,-500.0,0.00030136,2]
[325287863,1714683046129,-580.45,0.00030136,2]
[325287865,1714683046139,-1307.0,0.00030136,2]
[325287866,1714683046148,-500.0,0.00030136,2]
[325287867,1714683046160,-605.99,0.00030136,2]
[325287868,1714683046170,-500.0,0.00030136,2]
[325287869,1714683046180,-158.09957155,0.00030136,2]
[325287870,1714683046189,-500.0,0.00030136,2]
[325287871,1714683046199,-930.78,0.00030136,2]